fUSD/lending_fUSD_20240618
["ID","MTS","AMOUNT","RATE_DAILY","PERIOD"]
[329814030,1718693450001,-500.0,0.00021917,2]
[329814031,1718693450012,-500.0,0.00021917,2]
[329814032,1718693450021,-500.0,0.00021917,2]
[329814033,1718693450030,-500.0,0.00021917,2]
[329814034,1718693450039,-500.0,0.00021917,2]
[329814035,1718693450048,-500.0,0.00021917,2]
[329814036,1718693450058,-542.03968163,0.00021917,2]
[329814037,1718693450067,-500.0,0.00021917,2]
[329814038,1718693450076,-1097.81,0.00021917,2]
[329814039,1718693450085,-510.45499191,0.00021917,2]
[329814040,1718693450094,-500.0,0.00021917,2]
[329814041,1718693450103,-500.0,0.00021917,2]
[329814042,1718693450112,-692.1,0.00021917,2]
[329814043,1718693450122,-500.0,0.00021917,2]
[329814044,1718693450131,-500.0,0.00021917,2]
[329814045,1718693450141,-500.0,0.00021917,2]
[329814046,1718693450151,-510.19,0.00021917,2]
[329814047,1718693450160,-500.0,0.00021917,2]
[329814048,1718693450169,-500.0,0.00021917,2]
[329814049,1718693450178,-500.0,0.00021917,2]
[329814050,1718693450187,-500.0,0.00021917,2]
[329814051,1718693450197,-577.22,0.00021917,2]
[329814052,1718693450206,-500.0,0.00021917,2]
[329814053,1718693450216,-539.6,0.00021917,2]
[329814054,1718693450226,-500.0,0.00021917,2]
[329814055,1718693450237,-500.0,0.00021917,2]
[329814056,1718693450247,-500.0,0.00021917,2]
[329814057,1718693450258,-500.0,0.00021917,2]
[329814058,1718693450267,-500.0,0.00021917,2]
[329814059,1718693450278,-500.0,0.00021917,2]
[329814060,1718693450288,-439.78,0.00021917,7]
[329814061,1718693450299,-500.0,0.00021917,2]
[329814062,1718693450308,-500.0,0.00021917,2]
[329814063,1718693450317,-500.0,0.00021917,2]
[329814064,1718693450326,-500.0,0.00021917,2]
[329814065,1718693450336,-500.0,0.00021917,2]
[329814066,1718693450345,-586.62,0.00021917,2]
[329814067,1718693450356,-500.0,0.00021917,2]
[329814068,1718693450366,-500.0,0.00021917,2]
[329814069,1718693450376,-656.36,0.00021917,2]
[329814070,1718693450385,-500.0,0.00021917,2]
[329814071,1718693450396,-500.0,0.00021917,2]
[329814072,1718693450405,-500.0,0.00021917,2]
[329814073,1718693450414,-500.0,0.00021917,2]
[329814074,1718693450424,-500.0,0.00021917,2]
[329814075,1718693450433,-500.0,0.00021917,2]
[329814076,1718693450443,-500.0,0.00021917,2]
[329814077,1718693450453,-500.0,0.00021917,2]
[329814078,1718693450462,-500.0,0.00021917,2]
[329814079,1718693450472,-523.53,0.00021917,2]
[329814080,1718693450482,-500.0,0.00021917,2]
[329814081,1718693450491,-529.12126727,0.00021917,2]
[329814082,1718693450501,-500.0,0.00021917,2]
[329814083,1718693450510,-584.84,0.00021917,2]
[329814084,1718693450519,-848.47,0.00021917,2]
[329814085,1718693450528,-500.0,0.00021917,2]
[329814086,1718693450537,-500.0,0.00021917,2]
[329814087,1718693450547,-500.0,0.00021917,2]
[329814088,1718693450556,-500.0,0.00021917,2]
[329814089,1718693450565,-500.0,0.00021917,2]
[329814090,1718693450575,-500.0,0.00021917,2]
[329814091,1718693450587,-774.03,0.00021917,2]
[329814092,1718693450596,-673.62,0.00021917,2]
[329814093,1718693450605,-591.65,0.00021917,2]
[329814094,1718693450614,-500.0,0.00021917,2]
[329814095,1718693450624,-500.0,0.00021917,2]
[329814096,1718693450633,-500.0,0.00021917,2]
[329814097,1718693450642,-500.0,0.00021917,2]
[329814098,1718693450652,-637.32,0.00021917,2]
[329814099,1718693450661,-500.0,0.00021917,2]
[329814100,1718693450670,-215.10899336,0.00021917,2]
[329814101,1718693450679,-615.84,0.00021917,2]
[329814102,1718693450689,-500.0,0.00021917,2]
[329814103,1718693450699,-151.0,0.00021917,2]
[329814104,1718693450710,-500.0,0.00021917,2]
[329814105,1718693450720,-500.0,0.00021917,2]
[329814106,1718693450729,-500.0,0.00021917,2]
[329814107,1718693450740,-151.0,0.00021917,2]
[329814108,1718693450750,-151.0,0.00021917,2]
[329814109,1718693450761,-151.0,0.00021917,2]
[329814110,1718693450770,-299.594254,0.00021917,2]
[329814111,1718693450779,-500.0,0.00021917,2]
[329814112,1718693450788,-500.0,0.00021917,2]
[329814113,1718693450797,-500.0,0.00021917,2]
[329814114,1718693450807,-500.0,0.00021917,2]
[329814115,1718693450816,-500.0,0.00021917,2]
[329814116,1718693450825,-701.46,0.00021917,2]
[329814117,1718693450834,-500.0,0.00021917,2]
[329814118,1718693450843,-500.0,0.00021917,2]
[329814119,1718693450852,-500.0,0.00021917,2]
[329814120,1718693450861,-500.0,0.00021917,2]
[329814121,1718693450871,-500.0,0.00021917,2]
[329814122,1718693450883,-620.69783815,0.00021917,2]
[329814123,1718693450893,-530.54766909,0.00021917,2]
[329814124,1718693450904,-500.0,0.00021917,2]
[329814125,1718693450918,-500.0,0.00021917,2]
[329814126,1718693450929,-500.0,0.00021917,2]
[329814127,1718693450938,-500.0,0.00021917,2]
[329814128,1718693450949,-500.0,0.00021917,2]
[329814129,1718693450959,-500.0,0.00021917,2]
[329814130,1718693450970,-519.78,0.00021917,2]
[329814131,1718693450980,-500.0,0.00021917,2]
[329814132,1718693450990,-500.0,0.00021917,2]
[329814133,1718693451000,-896.78,0.00021917,2]
[329814134,1718693451009,-500.0,0.00021917,2]
[329814135,1718693451020,-500.0,0.00021917,2]
[329814136,1718693451030,-500.0,0.00021917,2]
[329814137,1718693451041,-500.0,0.00021917,2]
[329814138,1718693451051,-500.0,0.00021917,2]
[329814139,1718693451060,-500.0,0.00021917,2]
[329814140,1718693451070,-500.0,0.00021917,2]
[329814141,1718693451079,-500.0,0.00021917,2]
[329814142,1718693451264,-477.48419823,0.00021917,2]
[329814143,1718693451275,-500.0,0.00021917,2]
[329814144,1718693451285,-500.0,0.00021917,2]
[329814145,1718693451294,-500.0,0.00021917,2]
[329814146,1718693451304,-500.0,0.00021917,2]
[329814147,1718693451313,-500.0,0.00021917,2]
[329814148,1718693451322,-500.0,0.00021917,2]
[329814149,1718693451331,-500.0,0.00021917,2]
[329814150,1718693451340,-500.0,0.00021917,2]
[329814151,1718693451349,-500.0,0.00021917,2]
[329814152,1718693451358,-500.0,0.00021917,2]
[329814153,1718693451368,-500.0,0.00021917,2]
[329814154,1718693451377,-500.0,0.00021917,2]
[329814155,1718693451386,-500.0,0.00021917,2]
[329814156,1718693451395,-500.0,0.00021917,2]
[329814157,1718693451405,-500.0,0.00021917,2]
[329814158,1718693451414,-500.0,0.00021917,2]
[329814159,1718693451423,-500.0,0.00021917,2]
[329814160,1718693451433,-502.03209971,0.00021917,2]
[329814161,1718693451442,-500.0,0.00021917,2]
[329814162,1718693451451,-500.0,0.00021917,2]
[329814163,1718693451460,-500.0,0.00021917,2]
[329814164,1718693451469,-857.19,0.00021917,2]
[329814165,1718693451480,-537.25897929,0.00021917,2]
[329814166,1718693451489,-500.0,0.00021917,2]
[329814167,1718693451498,-715.87,0.00021917,2]
[329814168,1718693451507,-512.06093617,0.00021917,2]
[329814169,1718693451516,-752.13,0.00021917,2]
[329814170,1718693451526,-500.0,0.00021917,2]
[329814171,1718693451536,-703.53,0.00021917,2]
[329814172,1718693451545,-591.67,0.00021917,2]
[329814173,1718693451555,-500.0,0.00021917,2]
[329814174,1718693451567,-500.0,0.00021917,2]
[329814175,1718693451576,-1239.7,0.00021917,2]
[329814176,1718693451586,-500.0,0.00021917,2]
[329814177,1718693451596,-710.94,0.00021917,2]
[329814178,1718693451606,-556.01,0.00021917,2]
[329814179,1718693451615,-513.40765777,0.00021917,2]
[329814180,1718693451624,-500.0,0.00021917,2]
[329814181,1718693451634,-756.1,0.00021917,2]
[329814182,1718693451643,-1454.77,0.00021917,2]
[329814183,1718693451652,-500.0,0.00021917,2]
[329814184,1718693451662,-514.56263121,0.00021917,2]
[329814185,1718693451671,-500.0,0.00021917,2]
[329814186,1718693451680,-500.0,0.00021917,2]
[329814187,1718693451689,-500.0,0.00021917,2]
[329814188,1718693451698,-262.12512801,0.00021917,2]
[329814189,1718693451707,-500.0,0.00021917,2]
[329814190,1718693451718,-500.0,0.00021917,2]
[329814191,1718693451729,-500.0,0.00021917,2]
[329814192,1718693451740,-1251.62,0.00021917,2]
[329814193,1718693451750,-513.05259846,0.00021917,2]
[329814194,1718693451760,-500.0,0.00021917,2]
[329814195,1718693451770,-500.0,0.00021917,2]
[329814196,1718693451781,-1278.76,0.00021917,2]
[329814197,1718693451791,-512.4929714,0.00021917,2]
[329814198,1718693451802,-500.0,0.00021917,2]
[329814199,1718693451812,-500.0,0.00021917,2]
[329814200,1718693451823,-1400.25,0.00021917,2]
[329814201,1718693451833,-500.0,0.00021917,2]
[329814202,1718693451843,-500.0,0.00021917,2]
[329814203,1718693451852,-500.0,0.00021917,2]
[329814204,1718693451862,-500.7,0.00021917,2]
[329814205,1718693451872,-595.82113348,0.00021917,2]
[329814206,1718693451881,-500.0,0.00021917,2]
[329814207,1718693451891,-500.0,0.00021917,2]
[329814208,1718693451901,-714.17,0.00021917,2]
[329814209,1718693451913,-500.0,0.00021917,2]
[329814210,1718693451924,-500.0,0.00021917,2]
[329814211,1718693451934,-500.0,0.00021917,2]
[329814212,1718693451943,-500.0,0.00021917,2]
[329814213,1718693451953,-587.74,0.00021917,2]
[329814214,1718693451963,-508.16242424,0.00021917,2]
[329814215,1718693451972,-915.74,0.00021917,2]
[329814216,1718693451982,-500.0,0.00021917,2]
[329814217,1718693451993,-500.0,0.00021917,2]
[329814218,1718693452002,-511.15431674,0.00021917,2]
[329814219,1718693452012,-500.87,0.00021917,2]
[329814220,1718693452022,-500.0,0.00021917,2]
[329814221,1718693452031,-500.0,0.00021917,2]
[329814222,1718693452040,-500.0,0.00021917,2]
[329814223,1718693452049,-500.0,0.00021917,2]
[329814224,1718693452059,-849.57,0.00021917,2]
[329814225,1718693452069,-2124.0,0.00021917,2]
[329814226,1718693452079,-500.0,0.00021917,2]
[329814227,1718693452088,-500.0,0.00021917,2]
[329814228,1718693452097,-500.0,0.00021917,2]
[329814229,1718693452106,-1198.04,0.00021917,2]
[329814230,1718693452116,-500.0,0.00021917,2]
[329814231,1718693452126,-518.11,0.00021917,8]
[329814232,1718693452136,-500.0,0.00021917,2]
[329814233,1718693452146,-1511.73,0.00021917,2]
[329814234,1718693452156,-500.0,0.00021917,2]
[329814235,1718693452165,-687.19,0.00021917,2]
[329814236,1718693452175,-1236.09,0.00021917,2]
[329814237,1718693452185,-500.0,0.00021917,2]
[329814238,1718693452196,-193.44711921,0.00021917,2]
[329814239,1718693452206,-660.13,0.00021917,2]
[329814240,1718693452216,-500.0,0.00021917,2]
[329814241,1718693452225,-735.42,0.00021917,2]
[329814242,1718693452235,-2261.35,0.00021917,2]
[329814243,1718693452244,-500.0,0.00021917,2]
[329814244,1718693452254,-840.03,0.00021917,2]
[329814245,1718693452263,-1790.71,0.00021917,2]
[329814246,1718693452273,-500.0,0.00021917,2]
[329814247,1718693452283,-321.77750449,0.00021917,2]
[329814248,1718693452293,-500.0,0.00021917,2]
[329814249,1718693452302,-500.0,0.00021917,2]
[329814250,1718693452312,-620.67,0.00021917,2]
[329814251,1718693452321,-500.0,0.00021917,2]
[329814252,1718693452330,-661.6,0.00021917,2]
[329814253,1718693452340,-1023.77,0.00021917,2]
[329814254,1718693452349,-500.0,0.00021917,2]
[329814255,1718693452359,-500.0,0.00021917,2]
[329814256,1718693452368,-1127.47,0.00021917,2]
[329814257,1718693452378,-1277.42,0.00021917,2]
[329814258,1718693452388,-500.0,0.00021917,2]
[329814259,1718693452397,-884.83,0.00021917,2]
[329814260,1718693452407,-500.0,0.00021917,2]
[329814261,1718693452416,-500.0,0.00021917,2]
[329814262,1718693452426,-1643.68,0.00021917,2]
[329814263,1718693452435,-500.0,0.00021917,2]
[329814264,1718693452444,-500.0,0.00021917,2]
[329814265,1718693452454,-726.17,0.00021917,2]
[329814266,1718693452463,-500.0,0.00021917,2]
[329814267,1718693452473,-500.0,0.00021917,2]
[329814268,1718693452482,-500.0,0.00021917,2]
[329814269,1718693452492,-875.47,0.00021917,2]
[329814270,1718693452501,-603.08,0.00021917,2]
[329814271,1718693452511,-500.0,0.00021917,2]
[329814272,1718693452520,-1353.25,0.00021917,2]
[329814273,1718693452529,-907.66,0.00021917,2]
[329814274,1718693452538,-1434.61,0.00021917,2]
[329814275,1718693452548,-500.0,0.00021917,2]
[329814276,1718693452557,-230.75274252,0.00021917,2]
[329814277,1718693452567,-500.0,0.00021917,2]
[329814278,1718693452576,-500.0,0.00021917,2]
[329814279,1718693452586,-500.0,0.00021917,2]
[329814280,1718693452595,-892.52,0.00021917,2]
[329814281,1718693452604,-500.0,0.00021917,2]
[329814282,1718693452613,-500.0,0.00021917,2]
[329814283,1718693452622,-500.0,0.00021917,2]
[329814284,1718693452632,-535.18616979,0.00021917,2]
[329814285,1718693452642,-500.0,0.00021917,2]
[329814286,1718693452652,-151.0,0.00021917,2]
[329814287,1718693452661,-151.0,0.00021917,2]
[329814288,1718693452671,-298.400844,0.00021917,2]
[329814289,1718693452680,-1582.5,0.00021917,2]
[329814290,1718693452691,-500.0,0.00021917,2]
[329814291,1718693452700,-781.25,0.00021917,2]
[329814292,1718693452710,-520.48,0.00021917,2]
[329814293,1718693452720,-549.68093192,0.00021917,2]
[329814294,1718693452729,-500.0,0.00021917,2]
[329814295,1718693452739,-581.43,0.00021917,2]
[329814296,1718693452749,-500.0,0.00021917,2]
[329814297,1718693452759,-500.0,0.00021917,2]
[329814298,1718693452768,-558.88,0.00021917,2]
[329814299,1718693452778,-500.0,0.00021917,2]
[329814300,1718693452787,-512.36,0.00021917,2]
[329814301,1718693452799,-500.0,0.00021917,2]
[329814302,1718693452810,-755.47,0.00021917,2]
[329814303,1718693452819,-1284.32,0.00021917,2]
[329814304,1718693452830,-500.0,0.00021917,2]
[329814305,1718693452840,-500.0,0.00021917,2]
[329814306,1718693452850,-500.0,0.00021917,2]
[329814307,1718693452860,-500.0,0.00021917,2]
[329814308,1718693452870,-1456.37,0.00021917,2]
[329814309,1718693452878,-757.99,0.00021917,2]
[329814310,1718693452888,-517.81,0.00021917,2]
[329814311,1718693452898,-500.0,0.00021917,2]
[329814312,1718693452913,-500.0,0.00021917,2]
[329814313,1718693452922,-500.0,0.00021917,2]
[329814314,1718693452932,-500.0,0.00021917,2]
[329814315,1718693452943,-500.0,0.00021917,2]
[329814316,1718693452952,-500.0,0.00021917,2]
[329814317,1718693452962,-1261.17,0.00021917,2]
[329814318,1718693452972,-500.0,0.00021917,2]
[329814319,1718693452982,-500.0,0.00021917,2]
[329814320,1718693452994,-500.0,0.00021917,2]
[329814321,1718693453005,-500.0,0.00021917,2]
[329814322,1718693453014,-1107.81,0.00021917,2]
[329814323,1718693453024,-1517.5,0.00021917,2]
[329814324,1718693453034,-737.63,0.00021917,2]
[329814325,1718693453043,-1264.88,0.00021917,2]
[329814326,1718693453053,-349.38207323,0.00021917,2]
[329814327,1718693453063,-1713.95,0.00021917,2]
[329814328,1718693453080,-500.0,0.00021917,2]
[329814329,1718693453089,-603.3,0.00021917,2]
[329814330,1718693453098,-500.0,0.00021917,2]
[329814331,1718693453107,-500.0,0.00021917,2]
[329814332,1718693453118,-937.62,0.00021917,2]
[329814333,1718693453127,-569.61,0.00021917,2]
[329814334,1718693453140,-500.0,0.00021917,2]
[329814335,1718693453150,-500.0,0.00021917,2]
[329814336,1718693453161,-1378.19,0.00021917,2]
[329814337,1718693453171,-1156.57,0.00021917,2]
[329814338,1718693453180,-500.0,0.00021917,2]
[329814339,1718693453189,-552.92701266,0.00021917,2]
[329814340,1718693453198,-536.27565987,0.00021917,2]
[329814341,1718693453207,-523.93,0.00021917,2]
[329814342,1718693453217,-592.27,0.00021917,2]
[329814343,1718693453226,-744.95,0.00021917,2]
[329814344,1718693453236,-500.0,0.00021917,2]
[329814345,1718693453245,-602.27,0.00021917,2]
[329814346,1718693453254,-1523.74,0.00021917,2]
[329814347,1718693453264,-500.0,0.00021917,2]
[329814348,1718693453273,-612.28,0.00021917,2]
[329814349,1718693453282,-500.0,0.00021917,2]
[329814350,1718693453291,-534.91059683,0.00021917,2]
[329814351,1718693453301,-500.0,0.00021917,2]
[329814352,1718693453310,-628.5,0.00021917,2]
[329814353,1718693453320,-1152.26,0.00021917,2]
[329814354,1718693453329,-507.17959166,0.00021917,2]
[329814355,1718693453339,-1366.32,0.00021917,2]
[329814356,1718693453348,-500.0,0.00021917,2]
[329814357,1718693453358,-948.96,0.00021917,2]
[329814358,1718693453368,-754.53,0.00021917,2]
[329814359,1718693453378,-500.0,0.00021917,2]
[329814360,1718693453388,-500.0,0.00021917,2]
[329814361,1718693453398,-500.0,0.00021917,2]
[329814362,1718693453408,-500.0,0.00021917,2]
[329814363,1718693453417,-500.0,0.00021917,2]
[329814364,1718693453426,-1108.39,0.00021917,2]
[329814365,1718693453436,-500.0,0.00021917,2]
[329814366,1718693453446,-493.98410404,0.00021917,2]
[329814367,1718693453459,-497.1709096,0.00021917,2]
[329814368,1718693453470,-954.91,0.00021917,2]
[329814369,1718693453480,-522.92042804,0.00021917,2]
[329814370,1718693453490,-714.1,0.00021917,2]
[329814371,1718693453500,-500.0,0.00021917,2]
[329814372,1718693453509,-500.0,0.00021917,2]
[329814373,1718693453518,-500.0,0.00021917,2]
[329814374,1718693453528,-765.72,0.00021917,2]
[329814375,1718693453538,-986.38,0.00021917,2]
[329814376,1718693453547,-500.0,0.00021917,2]
[329814377,1718693453556,-500.0,0.00021917,2]
[329814378,1718693453575,-552.39,0.00021917,2]
[329814379,1718693453585,-500.0,0.00021917,2]
[329814380,1718693453594,-500.0,0.00021917,2]
[329814381,1718693453604,-500.0,0.00021917,2]
[329814382,1718693453618,-515.93911828,0.00021917,2]
[329814383,1718693453627,-500.0,0.00021917,2]
[329814384,1718693453637,-500.0,0.00021917,2]
[329814385,1718693453647,-500.0,0.00021917,2]
[329814386,1718693453657,-500.0,0.00021917,2]
[329814387,1718693453667,-500.0,0.00021917,2]
[329814388,1718693453677,-500.0,0.00021917,2]
[329814389,1718693453687,-1617.5,0.00021917,2]
[329814390,1718693453696,-500.0,0.00021917,2]
[329814391,1718693453706,-733.44,0.00021917,2]
[329814392,1718693453716,-500.0,0.00021917,2]
[329814393,1718693453725,-743.13,0.00021917,2]
[329814394,1718693453735,-915.06,0.00021917,2]
[329814395,1718693453743,-1982.32,0.00021917,2]
[329814396,1718693453754,-500.0,0.00021917,2]
[329814397,1718693453764,-500.0,0.00021917,2]
[329814398,1718693453773,-500.0,0.00021917,2]
[329814399,1718693453783,-594.41052561,0.00021917,2]
[329814400,1718693453792,-500.0,0.00021917,2]
[329814401,1718693453801,-500.0,0.00021917,2]
[329814402,1718693453811,-1122.43,0.00021917,2]
[329814403,1718693453821,-500.0,0.00021917,2]
[329814404,1718693453830,-500.0,0.00021917,2]
[329814405,1718693453840,-500.0,0.00021917,2]
[329814406,1718693453849,-500.0,0.00021917,2]
[329814407,1718693453858,-1254.91,0.00021917,2]
[329814408,1718693453868,-500.0,0.00021917,2]
[329814409,1718693453879,-500.0,0.00021917,2]
[329814410,1718693453888,-500.0,0.00021917,2]
[329814411,1718693453898,-439.17314771,0.00021917,2]
[329814412,1718693453908,-500.0,0.00021917,2]
[329814413,1718693453921,-500.0,0.00021917,2]
[329814414,1718693453931,-904.86,0.00021917,2]
[329814415,1718693453940,-1013.74,0.00021917,2]
[329814416,1718693453950,-1296.96,0.00021917,2]
[329814417,1718693453961,-1060.12,0.00021917,2]
[329814418,1718693453971,-500.0,0.00021917,2]
[329814419,1718693454160,-500.0,0.00021917,2]
[329814420,1718693454170,-500.0,0.00021917,2]
[329814421,1718693454180,-500.0,0.00021917,2]
[329814422,1718693454190,-690.21,0.00021917,2]
[329814423,1718693454200,-500.0,0.00021917,2]
[329814424,1718693454210,-1070.48,0.00021917,2]
[329814425,1718693454220,-500.0,0.00021917,2]
[329814426,1718693454230,-500.0,0.00021917,2]
[329814427,1718693454239,-865.74,0.00021917,2]
[329814428,1718693454249,-1175.17,0.00021917,2]
[329814429,1718693454259,-500.0,0.00021917,2]
[329814430,1718693454269,-500.0,0.00021917,2]
[329814431,1718693454279,-500.0,0.00021917,2]
[329814432,1718693454288,-521.24413219,0.00021917,2]
[329814433,1718693454299,-500.0,0.00021917,2]
[329814434,1718693454309,-500.0,0.00021917,2]
[329814435,1718693454319,-500.0,0.00021917,2]
[329814436,1718693454329,-500.0,0.00021917,2]
[329814437,1718693454339,-500.0,0.00021917,2]
[329814438,1718693454349,-1280.18,0.00021917,2]
[329814439,1718693454359,-538.16456803,0.00021917,2]
[329814440,1718693454369,-848.58,0.00021917,2]
[329814441,1718693454378,-500.0,0.00021917,2]
[329814442,1718693454388,-626.32090619,0.00021917,2]
[329814443,1718693454398,-920.15,0.00021917,2]
[329814444,1718693454409,-1431.51,0.00021917,2]
[329814445,1718693454419,-500.0,0.00021917,2]
[329814446,1718693454428,-500.0,0.00021917,2]
[329814447,1718693454438,-151.0,0.00021917,2]
[329814448,1718693454448,-500.0,0.00021917,2]
[329814449,1718693454458,-151.0,0.00021917,2]
[329814450,1718693454468,-208.259533,0.00021917,2]
[329814451,1718693454478,-500.0,0.00021917,2]
[329814452,1718693454487,-500.0,0.00021917,2]
[329814453,1718693454497,-500.0,0.00021917,2]
[329814454,1718693454506,-151.0,0.00021917,2]
[329814455,1718693454516,-151.0,0.00021917,2]
[329814456,1718693454526,-151.0,0.00021917,2]
[329814457,1718693454536,-183.839117,0.00021917,2]
[329814458,1718693454546,-500.0,0.00021917,2]
[329814459,1718693454556,-736.79,0.00021917,2]
[329814460,1718693454566,-1380.03,0.00021917,2]
[329814461,1718693454576,-911.73,0.00021917,2]
[329814462,1718693454602,-500.0,0.00021917,2]
[329814463,1718693454612,-1160.23,0.00021917,2]
[329814464,1718693454621,-500.0,0.00021917,2]
[329814465,1718693454630,-1467.91,0.00021917,2]
[329814466,1718693454639,-500.0,0.00021917,2]
[329814467,1718693454648,-500.0,0.00021917,2]
[329814468,1718693454657,-500.0,0.00021917,2]
[329814469,1718693454666,-500.0,0.00021917,2]
[329814470,1718693454676,-500.0,0.00021917,2]
[329814471,1718693454685,-414.51093926,0.00021917,2]
[329814472,1718693454694,-1058.57,0.00021917,2]
[329814473,1718693454703,-500.0,0.00021917,2]
[329814474,1718693454713,-500.0,0.00021917,2]
[329814475,1718693454722,-762.56,0.00021917,2]
[329814476,1718693454731,-1323.26,0.00021917,2]
[329814477,1718693454741,-500.0,0.00021917,2]
[329814478,1718693454750,-500.0,0.00021917,2]
[329814479,1718693454759,-500.0,0.00021917,2]
[329814480,1718693454768,-500.0,0.00021917,2]
[329814481,1718693454778,-714.1,0.00021917,2]
[329814482,1718693454788,-500.0,0.00021917,2]
[329814483,1718693454799,-1447.04,0.00021917,2]
[329814484,1718693454808,-500.0,0.00021917,2]
[329814485,1718693454818,-969.5,0.00021917,2]
[329814486,1718693454827,-1919.88,0.00021917,2]
[329814487,1718693454837,-500.0,0.00021917,2]
[329814488,1718693454846,-500.0,0.00021917,2]
[329814489,1718693454855,-864.86,0.00021917,2]
[329814490,1718693454865,-500.0,0.00021917,2]
[329814491,1718693454874,-729.95,0.00021917,2]
[329814492,1718693454884,-500.0,0.00021917,2]
[329814493,1718693454895,-337.48079697,0.00021917,2]
[329814494,1718693454907,-500.0,0.00021917,2]
[329814495,1718693454923,-1082.45,0.00021917,2]
[329814496,1718693454933,-500.0,0.00021917,2]
[329814497,1718693454943,-831.52,0.00021917,2]
[329814498,1718693454955,-500.0,0.00021917,2]
[329814499,1718693454968,-624.60445627,0.00021917,2]
[329814500,1718693454978,-1352.07,0.00021917,2]
[329814501,1718693454988,-521.29094909,0.00021917,2]
[329814502,1718693455000,-500.0,0.00021917,2]
[329814503,1718693455010,-500.0,0.00021917,2]
[329814504,1718693455019,-586.87,0.00021917,2]
[329814505,1718693455028,-500.0,0.00021917,2]
[329814506,1718693455039,-728.06,0.00021917,2]
[329814507,1718693455050,-392.4092374,0.00021917,2]
[329814508,1718693455059,-500.0,0.00021917,2]
[329814509,1718693455069,-500.0,0.00021917,2]
[329814510,1718693455079,-511.10603626,0.00021917,2]
[329814511,1718693455088,-1621.86,0.00021917,2]
[329814512,1718693455098,-1571.69,0.00021917,2]
[329814513,1718693455108,-151.0,0.00021917,2]
[329814514,1718693455118,-500.0,0.00021917,2]
[329814515,1718693455128,-500.0,0.00021917,2]
[329814516,1718693455152,-151.0,0.00021917,2]
[329814517,1718693455163,-915.14,0.00021917,2]
[329814518,1718693455172,-151.0,0.00021917,2]
[329814519,1718693455182,-151.0,0.00021917,2]
[329814520,1718693455192,-151.0,0.00021917,2]
[329814521,1718693455203,-151.0,0.00021917,2]
[329814522,1718693455213,-500.0,0.00021917,2]
[329814523,1718693455223,-500.0,0.00021917,2]
[329814524,1718693455233,-500.0,0.00021917,2]
[329814525,1718693455244,-500.0,0.00021917,2]
[329814526,1718693455255,-500.0,0.00021917,2]
[329814527,1718693455265,-151.0,0.00021917,2]
[329814528,1718693455275,-169.726769,0.00021917,2]
[329814529,1718693455285,-525.5,0.00021917,2]